Cogmind - Beta 14 @@@ ROGUE MODE // 2024.12.17 @ 20:19:42 Player: Dosh Result: Destroyed by Autobeam Turret with Autobeam Performance ------------- Evolutions (0) 0 Regions Visited (2) 400 Robots Destroyed (29) 145 Value Destroyed (442) 442 Prototype IDs (14) 280 Alien Tech Used (0) 0 Bonus (-38) -38 TOTAL SCORE: 1229 Bonus ------- Friendly Fire -38 Cogmind --------- Core Integrity 0/250 Matter 235/300 Energy 100/100 System Corruption 2% Temperature Cool (6) Movement Core (350) Ox6 Location -10/Subcaves Parts ------- > --- POWER (1) -------- (None) > --- PROPULSION (2) --- (None) > --- UTILITY (2) ------ Large Storage Unit > --- WEAPON (2) ------- Mini Grenade Launcher > --- INVENTORY (15) --- Subdweller Power Source Machine Analyzer Power Bank Spread Laser Spread Laser Spread Laser Assault Rifle Subdweller Machine Gun Multitool Peak State ------------ > --- POWER ------------ Light Ion Engine > --- PROPULSION ------- Light Treads Light Treads > --- UTILITY ---------- Large Storage Unit Structural Scanner > --- WEAPON ----------- Spread Laser Spread Laser > --- INVENTORY -------- Machine Analyzer Spread Laser Spread Laser Assault Rifle Mini Grenade Launcher [Rating: 10] Favorites ----------- Power Light Ion Engine Engine Light Ion Engine Propulsion Light Treads Treads Light Treads Utility Large Storage Unit Device Structural Scanner Storage Large Storage Unit Weapon Spread Laser Energy Gun Spread Laser Ballistic Gun Assault Rifle Launcher Mini Grenade Launcher Build | -11 -10 -10 ------- Run | Yrd Mat Sub Slots Evolved . | . . . Power . | . . . Propulsion . | . . . Utility . | . . . Weapon . | . . . Parts Attached 18 | 6 7 5 Power 3 | 1 1 1 Engine 3 | 1 1 1 Core . | . . . Reactor . | . . . Propulsion 4 | 2 2 . Treads 4 | 2 2 . Leg . | . . . Wheel . | . . . Hover . | . . . Flight . | . . . Utility 3 | 1 2 . Device 1 | . 1 . Storage 2 | 1 1 . Processor . | . . . Hackware . | . . . Protection . | . . . Artifact . | . . . Weapon 8 | 2 2 4 Energy Gun 3 | . 2 1 Energy Cannon . | . . . Ballistic Gun 3 | 2 . 1 Ballistic Cannon . | . . . Launcher 2 | . . 2 Special Weapon . | . . . Impact Weapon . | . . . Slashing Weapon . | . . . Piercing Weapon . | . . . Special Melee Weapon . | . . . Unidentified Prototypes . | . . . Parts Lost 9 | . 3 6 Power 3 | . 1 2 Propulsion 3 | . 1 2 Utility 1 | . . 1 Weapon 2 | . 1 1 Highest Loss Streak 3 | . 3 3 To Critical Strikes . | . . . Average Slot Usage (%) 84 | . 89 81 Engine 12 | . 11 13 Treads 22 | . 27 19 Device 5 | . 7 5 Storage 14 | . 14 14 Energy Gun 18 | . 7 25 Ballistic Gun 9 | . 20 2 Peak Build Rating 10 | 6 10 10 Average Rating 8 | 4 7 8 On Entrance 5 | . 6 10 Naked Turns . | . . . Heaviest Build 32 | 12 32 32 Greatest Support 40 | 40 40 40 Greatest Overweight (x) 1 | . . 1 Average Overweight (x) . | . . . Largest Inventory Capacity 15 | 8 15 15 Average Capacity 13 | 7 11 15 Most Carried 9 | . 7 9 Average Carried 5 | . 4 6 Final Capacity 15 | 8 15 15 Final Carried 9 | . 6 9 Class Distribution -------------------- 100% | Mutant Dominant Class ---------------- Mutant | -10/Materials Mutant | -10/Subcaves Resources | -11 -10 -10 ----------- Run | Yrd Mat Sub Matter Collected 673 | 229 319 125 Remotely . | . . . Salvage Created 684 | . 456 228 Parts 54 | . 38 16 Haulers Intercepted 2 | . 2 . Recyclers Shooed 2 | . 2 . Parts Field Recycled . | . . . Retrieved Matter . | . . . Parts Self-Destructed 8 | . . 8 Prevented . | . . . Kills | -11 -10 -10 ------- Run | Yrd Mat Sub Combat Hostiles Destroyed 20 | . 13 7 Guns 17 | . 13 4 AOE 3 | . . 3 Classes Destroyed 10 | . 7 3 Worker 2 | . 2 . Hauler 2 | . 2 . Recycler 1 | . 1 . Mechanic 1 | . 1 . Turret 1 | . . 1 Watcher 2 | . 2 . Swarmer 15 | . 12 3 Grunt 3 | . 1 2 Artisan 1 | . . 1 Subdweller 2 | . . 2 Best Kill Streak 5 | . 5 4 Combat Bots Only 4 | . 4 3 Max Kills in Single Turn 2 | . 1 2 Gunslinging . | . . . Exploded 2 | . . 2 Melee . | . . . Uniques/NPCs Destroyed . | . . . Combat | -11 -10 -10 -------- Run | Yrd Mat Sub Hostile Shots Fired 188 | . 91 97 Missed 60 | . 24 36 Damage Taken 1313 | . 558 755 Core 252 | . 91 161 Absorbed by Shields . | . . . Regen/Repaired (Parts) 104 | . 104 . Core Remaining (%) 100 | 100 . . Volleys Fired 91 | . 56 35 Largest 2 | . 2 2 Hottest 130 | . 130 130 Shots Fired 175 | . 111 64 Gun 167 | . 111 56 Cannon . | . . . Launcher 8 | . . 8 Special . | . . . Kinetic 84 | . 80 4 Thermal 83 | . 31 52 Explosive 8 | . . 8 Electromagnetic . | . . . Robot Hit Streak 22 | . 6 22 Robot Miss Streak 8 | . 8 3 Penetration Max . | . . . Secondary Targets 3 | . 2 1 Max Gunslinging Chain 1 | . 1 1 Shots Hit Robots 111 | . 66 45 Core Hits 103 | . 46 57 Critical Kills . | . . . Critical Parts Destroyed . | . . . Critical Strikes . | . . . Melee Attacks . | . . . Impact . | . . . Slashing . | . . . Piercing . | . . . Sneak Attacks . | . . . Combat Hostiles . | . . . Follow-up Attacks . | . . . Damage Inflicted 1938 | . 932 1006 Guns 1555 | . 916 639 Cannons . | . . . Explosions 367 | . . 367 Melee . | . . . Ramming 16 | . 16 . Kinetic 576 | . 558 18 Thermal 979 | . 358 621 Explosive 367 | . . 367 Electromagnetic . | . . . Impact . | . . . Slashing . | . . . Piercing . | . . . Highest Corruption 2 | . 2 2 Average Corruption 2 | . 2 2 Corruption Purged . | . . . Corruption Blocked . | . . . Effects 39 | . 12 27 Message Errors 9 | . 3 6 Matter Fused 12 | . 2 10 Heat Flow Errors 6 | . 2 4 Energy Discharges 3 | . 1 2 Parts Fused 1 | . 1 . Data Loss (minor) 5 | . 1 4 Misfires 1 | . . 1 Alerts 1 | . 1 . Weapon Failures 1 | . 1 . Overload Shots . | . . . Overflow Damage 55 | . . 55 Projectiles . | . . . Explosions 55 | . . 55 Melee . | . . . Knockbacks . | . . . Impact . | . . . Kinetic . | . . . Secondary . | . . . Self-Inflicted Damage 92 | . . 92 Shots 3 | . . 3 Rammed 4 | . 4 . Targets Rammed 4 | . 4 . Kicked . | . . . Crushed . | . . . Highest Temperature 243 | . 243 232 Average Temperature 46 | . 51 41 Received Heat Transfer 354 | . 48 306 Effects 1 | . . 1 Energy Bleed 1 | . . 1 Siege Activations . | . . . Robots Corrupted . | . . . Combat Hostiles . | . . . Parts Fried . | . . . Impact Corruptions . | . . . Robots Melted . | . . . Combat Hostiles . | . . . Parts Melted 1 | . . 1 Heat Transferred 1240 | . 440 800 Parts Sabotaged . | . . . Parts Stolen . | . . . Parts Stripped . | . . . Power Chain Reactions . | . . . Alert | -11 -10 -10 ------- Run | Yrd Mat Sub Peak Influence 206 | . 206 . Initial . | . . . Average 68 | . 71 . Maximum Alert Level 1 | . 1 . Low Security (%) 99 | 100 99 . Level 1 . | . . . Level 2 . | . . . Level 3 . | . . . Level 4 . | . . . Level 5 . | . . . High Security . | . . . Max Security . | . . . Squads Dispatched . | . . . Investigation . | . . . Extermination . | . . . Reinforcement . | . . . Assault . | . . . Garrison . | . . . Intercept . | . . . Searches Triggered . | . . . Construction Impeded . | . . . Haulers Reinforced . | . . . Active Scanning Responses . | . . . Cargo Convoy Interrupts . | . . . Stealth | -11 -10 -10 --------- Run | Yrd Mat Sub Distress Signals 3 | . 3 . Communications Jammed . | . . . Distress Signals . | . . . Times Spotted 35 | . 24 11 Peak Tracking Total 5 | . 5 5 Tactical Retreats 2 | . 1 1 Traps | -11 -10 -10 ------- Run | Yrd Mat Sub Traps Triggered 1 | . 1 . Indirectly . | . . . Trap Hack Attempts . | . . . Triggered . | . . . Disarmed . | . . . Reprogrammed . | . . . Reused . | . . . Traps Extracted . | . . . Installed . | . . . Triggered . | . . . Machines | -11 -10 -10 ---------- Run | Yrd Mat Sub Machines Disabled 6 | . 1 5 Max in Single Turn 3 | . 1 3 Machines Repaired . | . . . Machines Dismantled . | . . . Machines Sabotaged . | . . . Overloaded Fab Kills . | . . . Hacking | -11 -10 -10 --------- Run | Yrd Mat Sub Machines Accessed 10 | . 8 2 Terminals 7 | . 7 . Fabricators . | . . . Repair Stations 1 | . 1 . Recycling Units . | . . . Scanalyzers . | . . . Garrison Access . | . . . Total Hacks 26 | . 24 2 Successful 13 | . 11 2 Failed 13 | . 13 . Catastrophic 3 | . 3 . Database Lockouts . | . . . Manual 18 | . 18 . Terminals 20 | . 20 . Fabricators . | . . . Repair Stations 4 | . 4 . Recycling Units . | . . . Scanalyzers . | . . . Garrison Access . | . . . Terminal Hacks 5 | . 3 2 Robot Schematic 1 | . 1 . Prototype ID Bank 2 | . 2 . Open Door 1 | . . 1 Derelict Proto ID Bank 1 | . . 1 Fabricator Hacks . | . . . Repair Station Hacks 2 | . 2 . Scan Component 1 | . 1 . Repair 1 | . 1 . Recycling Unit Hacks . | . . . Scanalyzer . | . . . Garrison Access Hacks . | . . . Unauthorized Hacks 6 | . 6 . Terminals 6 | . 6 . Assimilate 1 | . 1 . Skim 5 | . 5 . Fabricators . | . . . Repair Stations . | . . . Recycling Units . | . . . Scanalyzers . | . . . Garrison Access . | . . . Data Cores Recovered . | . . . Used . | . . . Hacking Detections 6 | . 6 . Full Trace Events . | . . . Feedback Events . | . . . Feedback Blocked . | . . . Robot Schematics Acquired 1 | . 1 . Robots Built . | . . . Authchips . | . . . Time . | . . . Total Robot Build Rating . | . . . Part Schematics Acquired . | . . . Parts Built . | . . . Authchips . | . . . Time . | . . . Total Part Build Rating . | . . . Parts Repaired 1 | . 1 . Time 26 | . 26 . Parts Recycled . | . . . Recycled Matter . | . . . Retrieved Matter . | . . . Retrieved Components . | . . . Parts Scanalyzed . | . . . Part Schematics Acquired . | . . . Parts Damaged . | . . . Bothacking | -11 -10 -10 ------------ Run | Yrd Mat Sub Used RIF Installer . | . . . Robots Hacked . | . . . Non-combat . | . . . Combat . | . . . Robot Hacks Applied . | . . . Relay Couplers Released . | . . . Fabnet Peak Effective % . | . . . Robots Rewired . | . . . Allies Hacked . | . . . Hacks Repelled . | . . . Allies | -11 -10 -10 -------- Run | Yrd Mat Sub Total Allies . | . . . Largest Group . | . . . Highest-Rated Group . | . . . Highest-Rated Ally . | . . . Total Orders . | . . . Ally Attacks . | . . . Total Damage . | . . . Kills . | . . . Allies Corrupted . | . . . Allies Melted . | . . . Intel | -11 -10 -10 ------- Run | Yrd Mat Sub Robot Analysis Total . | . . . Derelict Logs Recovered 3 | . . 3 Drone Launches . | . . . Drone Recoveries . | . . . Exploration | -11 -10 -10 ------------- Run | Yrd Mat Sub Turns Passed 3378 | 61 1211 2106 Spaces Moved 1633 | 38 613 982 Core 7 | 7 . . Treads 1626 | 31 613 982 Legs . | . . . Wheels . | . . . Hover . | . . . Flight . | . . . Fastest Speed 50 | 50 160 160 Average Speed 185 | 139 160 202 Slowest Speed 240 | 160 160 240 Overloaded Moves . | . . . Propulsion Burnouts . | . . . Robots Hopped . | . . . Cave-ins Triggered . | . . . Exploration Rate (%) 51 | 3 92 59 Regions Visited 2 Branch Regions 1 Pre-discovered Areas 1 | . . 1 Known Exits Taken 1 | . 1 . Unknown Exits Taken 1 | 1 . . Scrap Searched . | . . . Spaces Dug . | . . . Terrain Destroyed 38 | . . 38 Melee . | . . . Projectile . | . . . AOE 38 | . . 38 Terrain Rammed . | . . . Walls Destroyed . | . . . Machines Disabled . | . . . Actions | -11 -10 -10 --------- Run | Yrd Mat Sub Total 1804 | 43 727 1034 Wait 46 | . 38 8 Move 1631 | 37 612 982 Hop . | . . . Pick Up 12 | . 8 4 Fast Attach 10 | 6 4 . Attach 3 | . 2 1 Detach 1 | . 1 . Swap 5 | . 1 4 Drop 1 | . 1 . Fire 91 | . 56 35 Melee . | . . . Ram . | . . . Kick . | . . . Crush 4 | . 4 . Escape Stasis . | . . . Rewire . | . . . Trap . | . . . Miscellaneous . | . . . Route ------- -11/Scrapyard -10/Materials (discovered 5 exits: *Mat x3 / *Min / *Sub) -10/Subcaves (discovered 3 exits: Mat x2 / [*Rec]) History --------- Turn | Location | Event 14 | -11/Scrapyard | Discovered new exit (range 16) 62 | -11/Scrapyard | Entered Materials 240 | -10/Materials | Discovered new exit (range 13) 310 | -10/Materials | Build established: Mutant 470 | -10/Materials | Learned Storage stockpile data 609 | -10/Materials | Learned Materials stockpile data 664 | -10/Materials | Learned location of 2 exits from Mines 707 | -10/Materials | Learned Storage terminal intel 742 | -10/Materials | Learned Storage stockpile data 747 | -10/Materials | Discovered new exit (range 15) 765 | -10/Materials | Learned 4 Recycling zone layouts 798 | -10/Materials | Identified exit to Materials 892 | -10/Materials | Identified exit to Mines 892 | -10/Materials | Identified exit to Subcaves 892 | -10/Materials | Learned location of 1 exit from Materials 937 | -10/Materials | Lost 3 parts (1p1n1w) 956 | -10/Materials | Learned Storage trap positions 976 | -10/Materials | Repaired Lgt. Treads 1273 | -10/Materials | Entered Subcaves 1274 | -10/Subcaves | Identified exit to Materials 1278 | -10/Subcaves | Learned location of Zion (-7) 1332 | -10/Subcaves | Shifting Twisted Machinery released Flamer 1374 | -10/Subcaves | Shifting Twisted Machinery released Sub. Optics 1423 | -10/Subcaves | Shifting Twisted Machinery released Riot Gun 1496 | -10/Subcaves | Learned 2 Materials zone layouts 1842 | -10/Subcaves | Shifting Twisted Machinery released Sub. Laser 1891 | -10/Subcaves | Shifting Twisted Machinery released Flamer 2086 | -10/Subcaves | Lost 3 parts (1p1n1u) 2811 | -10/Subcaves | A swath of the cavern ceiling suddenly collapsed 2974 | -10/Subcaves | Visited 4L-MR0's lab 2995 | -10/Subcaves | Found Prototype Device 3001 | -10/Subcaves | Identified Power Bank 3189 | -10/Subcaves | Learned Materials emergency access door positions 3361 | -10/Subcaves | Discovered new exit (range 13) 3362 | -10/Subcaves | Core integrity fell below 50% 3373 | -10/Subcaves | Core integrity fell below 20% 3379 | -10/Subcaves | Destroyed by Autobeam Turret with Autobeam Last Messages --------------- 03190_ KAO9R F SWU7T8DT#BKE0J=07 03247_ System corrupted: Matter fused (-8). 03312_ Acquired 8 matter. 03361_ EXIT=FOUND 03363_ Destroyed Lgt. Ion Engine. 03363_ S-10 Pest destroyed. 03363_ Destroyed Flight Unit. 03363_ S-10 Pest destroyed. 03365_ Subatomizers dissect the Lgt. Assault Rifle. 03370_ S-10 Pest destroyed. 03370_ Lgt. Treads destroyed. 03370_ Destroyed Lgt. Treads. 03370_ Spread Laser destroyed. 03370_ Destroyed Spread Laser. 03372_ Machine disabled. 03372_ Ion Engine destroyed. 03376_ Autobeam Turret destroyed. 03378_ Lgt. Assault Rifle fries itself beyond repair. 03378_ Machine disabled. 03379_ Subatomizers dissect the Flight Unit. Map ----- +----------------------------------------------------+ | ?????????????????????????????????????????????????? | | ?????????????????????????????????????????????????? | | ?????????????????????????????????????????????????? | | ?????????????????????????????????????????????????? | | ?????????????????????????????????????????????????? | | ?????????????????????????????????????????????????? | | ##???????????????????????????????????????????????? | | "#???????????????????????????????????????????????? | | "#???????????????????????????????????????????????? | | "#???????????????????????????????